bitfinex-derivatives/quotes_ETHF0:USTF0_20260120
["timestamp","ask_amount","ask_price","bid_price","bid_amount"]
[1768918798377,0.29897123,3060.0,3056.6,7.69586871]
[1768918798583,0.13545123,3060.0,3057.3,0.424618]
[1768918798779,0.29894123,3060.5,3057.4,3.268]
[1768918799092,0.13545123,3060.4,3057.7,0.16364]
[1768918799285,0.00301051,3060.5,3057.5,3.58130437]
[1768918799479,0.13545123,3061.9,3058.0,2.30205117]
[1768918799686,0.13545123,3062.4,3058.0,2.30205117]
[1768918799886,0.13545123,3062.4,3059.7,0.14650169]
[1768918800087,0.29884123,3062.4,3059.9,0.14650169]
[1768918800292,0.29887123,3061.9,3059.9,0.14650169]
[1768918800593,0.00308145,3061.9,3060.4,0.14650169]
[1768918800783,0.13545123,3063.2,3061.0,0.14650169]
[1768918800985,0.13545123,3062.8,3060.6,0.14650169]
[1768918801187,0.29882123,3062.8,3060.6,0.14650169]
[1768918801382,0.13545123,3063.4,3060.8,0.14650169]
[1768918801592,0.13545123,3063.4,3060.8,0.30997169]
[1768918801798,0.003561,3063.4,3061.1,0.57111969]
[1768918801996,0.003561,3063.4,3061.5,0.14650169]
[1768918802189,0.003561,3063.4,3061.6,0.14650169]
[1768918802495,0.003561,3063.4,3061.8,0.14650169]
[1768918802888,0.003561,3063.4,3062.0,0.57111969]
[1768918803088,0.003561,3063.4,3062.0,0.14650169]
[1768918803393,0.13545123,3065.0,3063.2,0.57111969]
[1768918803601,0.29867123,3065.5,3063.2,0.08112169]
[1768918803794,0.13545123,3065.5,3063.3,0.424618]
[1768918803984,0.13545123,3065.2,3062.7,3.269]
[1768918804184,0.13545123,3065.1,3062.2,4.16175476]
[1768918804492,0.13545123,3065.1,3058.9,6.65082191]
[1768918804493,0.29879123,3063.3,3060.5,5.196]
[1768918804693,0.13545123,3063.9,3060.9,0.16347]
[1768918804890,0.13545123,3063.9,3061.0,13.7]
[1768918805091,0.13545123,3063.8,3061.1,5.195]
[1768918805291,0.13545123,3064.3,3061.1,9.51023605]
[1768918805497,0.29871123,3064.8,3061.1,13.17702532]
[1768918805688,0.29871123,3064.8,3062.0,0.16341]
[1768918805896,0.16326,3064.8,3062.3,0.14650169]
[1768918806195,0.16326,3064.8,3062.5,0.14650169]
[1768918806387,0.16326,3064.8,3062.4,9.52554574]
[1768918806388,0.16326,3064.8,3062.9,0.14650169]
[1768918806688,0.16326,3064.8,3063.0,0.14650169]
[1768918806888,0.16326,3064.8,3063.2,0.14650169]
[1768918807294,0.16326,3064.8,3062.4,9.52554574]
[1768918807295,0.00409741,3065.1,3063.6,0.424618]
[1768918807489,0.00409741,3065.1,3063.8,0.14650169]
[1768918807687,0.00409741,3065.1,3063.8,2.07350169]
[1768918807892,0.16317,3066.5,3064.8,0.424618]
[1768918808200,0.16317,3066.5,3064.6,0.14650169]
[1768918808391,0.29858123,3067.3,3065.2,0.14650169]
[1768918808692,0.16309,3068.0,3065.4,0.14650169]
[1768918808897,0.16581649,3068.0,3065.4,0.14650169]
[1768918809094,0.13817772,3068.0,3065.9,0.424618]
[1768918809291,0.16312,3067.5,3065.9,0.00251752]
[1768918809492,0.13545123,3067.6,3065.9,0.00251752]
[1768918810097,0.16312,3067.5,3066.1,0.14650169]
[1768918810294,0.16312,3067.5,3065.9,0.14901921]
[1768918810592,0.16312,3067.5,3066.2,0.424618]
[1768918810798,0.00272649,3068.0,3066.3,0.424618]
[1768918810996,0.00272649,3068.0,3066.2,0.14650169]
[1768918811189,0.13817772,3068.0,3065.9,0.00251752]
[1768918811992,0.13545123,3067.1,3065.9,0.00251752]
[1768918812195,0.13545123,3066.8,3064.5,0.14650169]
[1768918812390,0.13545123,3066.7,3064.5,0.14650169]
[1768918812592,0.13545123,3066.4,3064.5,0.14650169]
[1768918812796,0.29863123,3066.4,3064.5,0.14650169]
[1768918813002,0.29863123,3066.4,3064.8,0.424618]
[1768918813194,0.29859123,3067.0,3064.8,0.424618]
[1768918813394,0.13545123,3066.8,3064.8,0.14886983]
[1768918814205,0.13545123,3067.5,3064.8,0.14886983]
[1768918814405,0.16313,3067.3,3064.8,0.14886983]
[1768918814697,0.13545123,3067.0,3064.8,0.14886983]
[1768918815100,0.13545123,3067.0,3064.9,0.424618]
[1768918815493,0.13545123,3067.0,3065.1,0.14007094]
[1768918815695,0.16314,3067.1,3065.4,0.14007094]
[1768918815894,0.14119395,3067.0,3064.8,0.14243908]
[1768918816095,0.14119395,3067.0,3064.9,0.14007094]
[1768918816096,0.16314,3067.0,3064.9,0.14007094]
[1768918816296,0.14119395,3067.4,3065.2,0.14007094]
[1768918816694,0.00272649,3068.0,3063.8,0.14007094]
[1768918816695,0.14119395,3066.1,3063.8,0.14007094]
[1768918816899,0.14119395,3066.1,3063.1,0.16335]
[1768918816900,0.16322,3065.5,3063.2,0.14007094]
[1768918817097,0.14119395,3066.1,3063.5,0.16333]
[1768918817294,0.14119395,3066.1,3063.8,0.14007094]
[1768918817492,0.14119395,3066.1,3064.0,0.14007094]
[1768918817696,0.14119395,3066.7,3064.2,0.14007094]
[1768918817892,0.14119395,3066.7,3064.1,0.424618]
[1768918817893,0.0034195,3066.1,3064.5,0.14007094]
[1768918818093,0.0034195,3066.1,3064.8,0.14007094]
[1768918818298,0.14461345,3066.1,3064.0,0.00304104]
[1768918818499,0.14461345,3066.1,3064.1,0.424618]
[1768918818694,0.0034195,3066.1,3064.4,0.14007094]
[1768918818896,0.0034195,3066.1,3064.5,0.56468894]
[1768918819108,0.0034195,3066.1,3064.7,0.14007094]
[1768918819300,0.0034195,3066.1,3064.9,0.14007094]
[1768918819508,0.0034195,3066.1,3064.4,0.14007094]
[1768918819699,0.0034195,3066.1,3064.6,0.424618]
[1768918820005,0.0034195,3066.1,3065.2,0.424618]
[1768918820203,0.0034195,3066.1,3065.0,0.14007094]
[1768918820513,0.0034195,3066.1,3065.4,0.424618]
[1768918820804,0.0034195,3066.1,3065.6,0.424618]
[1768918821205,0.0034195,3066.1,3065.9,0.424618]
[1768918821510,0.14119395,3067.4,3065.7,0.424618]
[1768918821706,0.14119395,3067.4,3065.1,0.14007094]
[1768918822100,0.14119395,3067.4,3065.3,0.14007094]
[1768918822409,0.16314,3067.2,3065.3,0.14007094]
[1768918822610,0.16314,3067.2,3064.9,4.47623937]
[1768918822611,0.003882,3067.4,3065.6,0.14007094]
[1768918822813,0.003882,3067.4,3065.9,0.14007094]
[1768918823199,0.14507595,3067.4,3066.1,0.424618]
[1768918823503,0.16317,3066.6,3064.7,0.14007094]
[1768918823702,0.16317,3066.6,3064.9,0.14007094]
[1768918823910,0.16317,3066.5,3064.9,0.14007094]
[1768918824413,0.16318,3066.3,3064.3,0.14007094]
[1768918824899,0.16318,3066.3,3064.7,0.14007094]
[1768918825098,0.16318,3066.3,3064.9,0.424618]
[1768918825410,0.14119395,3066.6,3064.9,0.424618]
[1768918825705,0.14119395,3066.6,3064.7,0.14007094]
[1768918825905,0.14119395,3066.6,3064.8,0.56468894]
[1768918826110,0.14119395,3067.3,3064.9,0.14007094]
[1768918826309,0.30432395,3067.3,3064.9,0.14007094]
[1768918826504,0.30432395,3067.3,3065.1,0.14007094]
[1768918826811,0.003882,3067.4,3065.5,0.14007094]
[1768918827108,0.003882,3067.4,3065.6,0.14007094]
[1768918827308,0.003882,3067.4,3065.8,0.424618]
[1768918827607,0.167012,3067.4,3065.6,0.14007094]
[1768918827911,0.16313,3067.3,3065.6,0.56468894]
[1768918828119,0.14507595,3067.4,3065.1,0.14007094]
[1768918828296,0.14507595,3067.4,3065.2,0.424618]
[1768918828497,0.14507595,3067.4,3065.3,0.424618]
[1768918828698,0.14507595,3067.4,3065.2,0.424618]
[1768918828915,0.14507595,3067.4,3065.2,0.56468894]
[1768918829712,0.16314,3067.0,3065.2,0.56468894]
[1768918830109,0.16314,3067.0,3065.4,0.424618]
[1768918830511,0.16314,3067.0,3065.5,0.424618]
[1768918830710,0.16314,3067.0,3065.4,0.424618]
[1768918831108,0.16314,3067.0,3065.5,0.424618]
[1768918831305,0.16314,3067.0,3065.4,0.424618]
[1768918831805,0.16314,3067.0,3065.5,0.424618]
[1768918832105,0.16314,3067.0,3065.4,0.424618]
[1768918832306,0.16314,3067.0,3065.5,0.424618]
[1768918832503,0.16314,3067.0,3065.4,0.424618]
[1768918832813,0.16315,3066.9,3065.4,0.424618]
[1768918833015,0.16315,3066.9,3065.2,0.14007094]
[1768918833215,0.16315,3066.9,3065.4,0.424618]
[1768918833406,0.16315,3066.9,3065.5,0.424618]
[1768918833814,0.16315,3066.9,3065.6,0.424618]
[1768918834020,0.14507595,3067.4,3065.2,0.56468894]
[1768918834319,0.14119395,3067.2,3065.2,0.14007094]
[1768918834503,1.59144366,3067.1,3065.2,0.14007094]
[1768918834711,0.16316,3066.7,3065.2,0.14007094]
[1768918834913,0.16316,3066.7,3065.3,0.14007094]
[1768918835115,0.16316,3066.7,3065.4,0.424618]
[1768918835314,0.16316,3066.7,3065.6,0.424618]
[1768918835615,0.16316,3066.7,3065.7,0.424618]
[1768918835818,0.16314,3067.2,3065.6,0.424618]
[1768918836013,1.45261018,3067.1,3065.3,0.14007094]
[1768918836209,1.02213182,3067.0,3065.4,0.56468894]
[1768918836413,0.16314,3067.2,3065.4,0.14007094]
[1768918836718,1.44953748,3067.1,3065.7,0.14007094]
[1768918837021,0.003882,3067.4,3066.0,0.14007094]
[1768918837216,1.44584381,3067.3,3066.1,0.56468894]
[1768918837417,0.003882,3067.4,3066.1,0.56468894]
[1768918837612,0.003882,3067.4,3066.4,0.424618]
[1768918837814,0.003882,3067.4,3066.5,0.424618]
[1768918838120,0.003882,3067.4,3066.6,0.424618]
[1768918838316,1.01441178,3067.3,3066.6,0.424618]
[1768918838624,0.003882,3067.4,3066.6,0.424618]
[1768918838918,1.01450618,3067.3,3066.6,0.424618]
[1768918839108,0.003882,3067.4,3066.4,0.00387404]
[1768918839310,1.01475543,3067.3,3066.4,0.00387404]
[1768918839518,0.003882,3067.4,3066.4,0.00387404]
[1768918839713,1.01474816,3067.3,3066.4,0.00387404]
[1768918839915,0.003882,3067.4,3066.4,0.00387404]
[1768918840222,0.16313,3067.2,3066.4,0.00387404]
[1768918840518,1.01474617,3067.1,3066.4,0.00387404]
[1768918840916,1.01474617,3067.1,3066.4,0.42849204]
[1768918841111,1.0149293,3067.0,3065.6,0.14007094]
[1768918841314,0.16315,3066.9,3065.6,0.14007094]
[1768918841617,1.01489158,3066.8,3065.6,0.14007094]
[1768918841816,0.16315,3066.9,3065.8,0.424618]
[1768918842021,1.01485907,3066.8,3065.7,0.424618]
[1768918842221,1.01479527,3066.7,3065.7,0.00362453]
[1768918842422,0.16315,3066.9,3065.7,0.42824253]
[1768918842720,1.17772606,3066.8,3065.7,0.00362453]
[1768918842920,1.01457606,3066.7,3065.7,0.00362453]
[1768918843120,0.16315,3066.8,3065.7,0.00362453]
[1768918843321,1.01463038,3066.7,3065.7,0.00362453]
[1768918843514,1.01458846,3066.6,3065.7,0.42824253]
[1768918843714,0.16315,3066.8,3065.7,0.00362453]
[1768918844020,1.01458909,3066.7,3065.7,0.00362453]
[1768918844214,1.01458909,3066.6,3065.7,0.00362453]
[1768918844415,0.16315,3066.8,3065.7,0.00362453]
[1768918844622,1.01447181,3066.7,3065.7,0.00362453]
[1768918844822,1.01447181,3066.6,3065.7,0.00362453]
[1768918845024,0.16315,3066.8,3065.7,0.00362453]
[1768918845321,1.00991303,3066.7,3065.7,0.00362453]
[1768918845517,1.00991303,3066.6,3065.7,0.00362453]
[1768918845825,0.167002,3067.4,3066.1,0.424618]
[1768918846021,1.42794036,3067.3,3066.3,0.14455005]
[1768918846219,0.003882,3067.4,3066.4,0.424618]
[1768918846425,1.00578269,3067.3,3065.7,0.14817458]
[1768918846627,0.003882,3067.4,3065.9,0.424618]
[1768918846830,1.00577677,3067.3,3065.9,0.424618]
[1768918847030,0.167002,3067.4,3066.0,0.424618]
[1768918847324,0.167002,3067.4,3065.7,0.14817458]
[1768918847325,1.40386984,3067.3,3065.7,0.14817458]
[1768918847523,0.16315,3067.0,3065.7,0.00362453]
[1768918847723,0.99682709,3066.9,3065.7,0.00362453]
[1768918847924,0.99682709,3066.9,3065.8,0.424618]
[1768918848424,0.99682709,3066.8,3065.8,0.424618]
[1768918848626,0.13523715,3067.2,3065.7,0.00362453]
[1768918848825,1.40519316,3067.1,3065.7,0.00362453]
[1768918849128,0.16316,3066.8,3065.7,0.00362453]
[1768918849314,0.99804109,3066.7,3065.7,0.00362453]
[1768918849727,0.99804109,3066.7,3065.8,0.424618]
[1768918850823,0.99804109,3066.7,3065.9,0.424618]
[1768918851323,0.99804109,3066.7,3065.7,0.00362453]
[1768918851324,1.16120109,3066.7,3065.7,0.00362453]
[1768918851515,0.99804109,3066.6,3065.8,0.424618]
[1768918851718,0.54244092,3066.5,3064.7,0.14455005]
[1768918851923,1.40524486,3066.4,3064.7,0.14455005]
[1768918852121,1.40524486,3066.3,3064.7,0.14455005]
[1768918852320,0.13523715,3066.5,3064.7,0.14455005]
[1768918852321,0.99804109,3066.2,3064.7,0.14455005]
[1768918852516,0.16316,3066.7,3064.7,0.14455005]
[1768918852725,1.40422009,3066.6,3064.7,0.14710929]
[1768918852927,1.40422009,3066.5,3064.7,0.14710929]
[1768918853126,0.16318,3066.3,3064.7,0.14710929]
[1768918853329,1.40404723,3066.2,3064.7,0.14710929]
[1768918853527,0.16318,3066.3,3064.7,0.14710929]
[1768918853528,0.9973034,3066.1,3064.7,0.14710929]
[1768918853726,0.16318,3066.3,3064.7,0.14710929]
[1768918854031,0.9966177,3066.2,3064.7,0.14710929]
[1768918854233,0.9966177,3066.1,3064.7,0.14710929]
[1768918854417,0.16318,3066.3,3064.7,0.14710929]
[1768918854623,0.99652931,3066.2,3064.7,0.14710929]
[1768918854829,0.99652931,3066.1,3064.7,0.14710929]
[1768918855028,0.09318,3066.3,3064.7,0.14710929]
[1768918855224,1.40307512,3066.2,3064.7,0.14710929]
[1768918855427,1.53828819,3066.1,3064.7,0.00255924]
[1768918855631,0.16321,3065.9,3064.7,0.00255924]
[1768918855832,0.99649974,3065.8,3064.7,0.00255924]
[1768918856027,0.16321,3065.9,3064.7,0.00255924]
[1768918856232,0.16317,3066.5,3064.7,0.14710929]
[1768918856433,1.40242289,3066.4,3064.7,0.14710929]
[1768918856637,0.9960183,3066.3,3064.7,0.14710929]
[1768918856822,0.16317,3066.5,3064.7,0.14710929]
[1768918857024,1.40261992,3066.4,3064.7,0.14710929]
[1768918857231,0.16317,3066.5,3064.7,0.14710929]
[1768918857837,0.13523715,3067.1,3064.9,0.14455005]
[1768918858049,1.38460313,3067.0,3064.9,0.14455005]
[1768918858247,1.38460313,3066.9,3064.9,0.14455005]
[1768918858446,0.16315,3066.8,3064.9,0.14455005]
[1768918858845,0.16316,3066.7,3064.9,0.14455005]
[1768918861753,0.16313,3067.2,3065.1,0.14455005]
[1768918861944,1.3831691,3067.1,3065.1,0.14455005]
[1768918862145,0.40649323,3067.0,3065.1,0.14455005]
[1768918863052,0.56964323,3067.0,3065.1,0.14455005]
[1768918863248,0.003882,3067.4,3065.4,0.16323]
[1768918863453,0.003882,3067.4,3065.7,0.14455005]
[1768918864357,0.003882,3067.4,3065.7,0.30776005]
[1768918864557,0.16308,3068.2,3066.1,0.14455005]
[1768918865355,0.13523715,3068.6,3066.2,0.14455005]
[1768918865556,0.40602286,3068.5,3066.2,0.14455005]
[1768918865754,0.40602286,3068.4,3066.2,0.14455005]
[1768918865958,0.13838201,3068.6,3066.3,0.14455005]
[1768918866154,0.40603124,3068.5,3066.3,0.14455005]
[1768918866456,0.00314486,3068.6,3066.3,0.14455005]
[1768918866644,0.56887832,3068.5,3066.3,0.14455005]
[1768918866850,0.16307,3068.5,3066.3,0.14455005]
[1768918868154,0.13838201,3068.6,3066.3,0.14455005]
[1768918868363,0.54022946,3068.5,3066.3,0.14455005]
[1768918868549,0.13523715,3068.5,3066.3,0.14455005]
[1768918869651,0.16307,3068.3,3066.3,0.14455005]
[1768918870058,0.00314486,3068.6,3066.3,0.14455005]
[1768918870955,0.00314486,3068.6,3067.1,0.14455005]
[1768918871147,0.29821715,3070.0,3067.5,0.14455005]
[1768918871345,0.16298,3070.0,3067.8,0.14455005]
[1768918871545,0.70226166,3070.5,3068.3,0.14455005]
[1768918871747,0.70226166,3070.5,3068.5,0.14455005]
[1768918871946,0.83749881,3070.5,3068.5,0.14455005]
[1768918872157,0.84119868,3070.5,3068.5,0.14455005]
[1768918872346,0.84119868,3070.5,3068.7,0.0744374]
[1768918872347,0.1675681,3070.5,3068.7,0.0744374]
[1768918872551,0.13523715,3071.3,3069.0,0.16303]
[1768918873351,0.13523715,3071.3,3069.1,4.16322561]
[1768918873659,0.13871296,3071.3,3069.0,0.16303]
[1768918874154,0.13523715,3072.3,3070.0,2.30103962]
[1768918874451,0.13523715,3072.3,3070.0,3.49795274]
[1768918874858,0.13523715,3072.3,3070.0,3.263]
[1768918875053,0.13835532,3072.2,3070.0,3.263]
[1768918875255,0.13835532,3071.4,3070.0,0.003202]
[1768918875853,0.13835532,3071.0,3070.0,0.003202]
[1768918876658,0.13835532,3071.0,3068.7,3.263]
[1768918877065,0.13835532,3071.0,3068.8,4.16894726]
[1768918877266,0.30129532,3070.9,3068.8,13.7]
[1768918877566,5.56303962,3071.6,3068.7,3.263]
[1768918877567,0.13835532,3070.7,3068.7,3.263]
[1768918877762,0.13835532,3070.7,3068.8,0.00353373]
[1768918878264,0.13835532,3070.6,3068.8,0.00353373]
[1768918880368,0.30130532,3070.6,3068.8,0.00353373]
[1768918880570,0.13835532,3070.5,3068.8,0.00353373]
[1768918882766,0.13835532,3071.2,3068.9,0.16304]
[1768918883066,0.13835532,3071.2,3069.0,0.24219885]
[1768918883367,0.13835532,3071.2,3069.0,0.16303]
[1768918884159,0.13835532,3071.2,3069.1,4.17369482]
[1768918884873,0.13835532,3071.0,3068.8,0.00353373]
[1768918885273,0.13835532,3071.0,3068.9,4.26774708]
[1768918885766,0.13835532,3071.0,3069.1,0.16303]
[1768918886073,0.13835532,3071.0,3069.4,0.16301]
[1768918886665,0.13835532,3071.0,3069.2,4.26774708]
[1768918886875,0.13835532,3071.0,3069.1,0.08086158]
[1768918887173,0.13835532,3070.9,3069.0,0.16303]
[1768918889180,0.13835532,3070.6,3068.8,0.00353373]
[1768918889573,0.13835532,3070.4,3068.8,0.00353373]
[1768918890477,0.13835532,3070.0,3068.8,0.00353373]
[1768918890676,0.30134532,3069.9,3068.8,0.00353373]
[1768918890876,0.13835532,3069.8,3068.8,0.00353373]
[1768918891668,0.13835532,3069.6,3067.9,3.26]
[1768918891878,0.13835532,3069.6,3067.7,1.921]
[1768918891879,0.13835532,3069.5,3067.5,0.16312]
[1768918892275,0.13835532,3069.5,3067.2,13.7]
[1768918892475,0.13835532,3069.3,3067.2,13.7]
[1768918892772,0.13835532,3069.3,3067.3,0.16313]
[1768918894375,0.13835532,3069.3,3067.4,4.24113497]
[1768918894875,0.13835532,3069.3,3067.3,0.16313]
[1768918896575,0.13835532,3069.3,3067.6,0.16311]
[1768918898375,0.13835532,3069.3,3067.7,4.25399588]
[1768918898574,0.13835532,3069.3,3067.2,13.86703718]
[1768918898771,0.13835532,3069.3,3067.4,4.25399588]
[1768918898976,0.13835532,3069.3,3067.3,4.25399588]
[1768918899177,0.13835532,3069.3,3067.2,13.86703718]
[1768918899378,0.13835532,3069.3,3067.3,4.17857108]
[1768918899776,0.13835532,3069.3,3067.3,4.34170108]
[1768918900580,0.13835532,3069.3,3067.3,0.16313]
[1768918900780,0.13835532,3069.3,3067.5,0.16312]
[1768918900981,0.13835532,3069.3,3067.7,0.1631]
[1768918901175,0.13835532,3069.9,3067.8,1.928]
[1768918901382,0.30134532,3069.9,3067.8,1.928]
[1768918901582,0.13835532,3069.7,3067.8,1.928]
[1768918903489,0.14841328,3069.5,3067.8,1.928]
[1768918903794,0.14841328,3069.4,3067.8,1.928]
[1768918905289,0.14841328,3069.4,3067.8,2.0911]
[1768918905888,0.14462063,3069.3,3067.8,1.928]
[1768918906688,0.14462063,3069.1,3067.8,1.928]
[1768918907290,0.14462063,3069.6,3067.8,1.928]
[1768918907484,0.16301,3069.5,3067.8,1.928]
[1768918907689,0.14462063,3069.4,3067.8,1.928]
[1768918908588,0.14462063,3069.3,3067.8,1.928]
[1768918908794,0.14462063,3069.2,3067.8,1.928]
[1768918912300,0.14462063,3069.1,3067.8,1.928]
[1768918912502,0.14462063,3068.9,3067.2,0.00390718]
[1768918913203,0.16305,3068.7,3067.2,0.00390718]
[1768918914199,0.14462063,3068.9,3067.2,0.00390718]
[1768918914396,0.16302,3069.3,3067.2,0.16703718]
[1768918914601,0.14462063,3069.2,3067.3,4.37679586]
[1768918917101,0.14462063,3069.2,3067.3,4.21366586]
[1768918917300,0.14462063,3069.2,3067.4,0.16312]
[1768918917703,0.14462063,3069.7,3067.7,0.1631]
[1768918917910,0.14462063,3069.6,3067.7,0.1631]
[1768918918102,0.14462063,3069.5,3067.7,0.1631]
[1768918920518,0.14859903,3070.0,3067.9,0.09654506]
[1768918920719,0.14859903,3070.0,3068.3,0.16307]
[1768918921011,0.14859903,3070.0,3068.4,13.7]
[1768918921200,0.14859903,3070.0,3068.5,0.16306]
[1768918921201,0.0039784,3070.0,3068.5,0.16306]
[1768918921711,0.0039784,3070.0,3068.7,0.16305]
[1768918922101,0.0039784,3070.0,3068.5,4.15804076]
[1768918922310,0.14859903,3070.0,3068.4,15.628]
[1768918923304,0.14859903,3070.0,3068.4,1.928]
[1768918925200,0.14462063,3069.9,3068.4,1.928]
[1768918925806,0.14462063,3069.5,3067.3,3.261]
[1768918926006,0.14462063,3069.4,3067.4,1.93]
[1768918926202,0.14462063,3069.3,3067.4,1.93]
[1768918926615,0.14462063,3069.3,3067.4,15.63]
[1768918928619,0.14462063,3069.3,3067.6,0.16311]
[1768918931818,0.14462063,3069.1,3067.4,1.93]
[1768918932217,0.14462063,3069.1,3067.5,13.7]
[1768918932415,0.14462063,3069.1,3067.4,1.93]
[1768918933120,0.14462063,3069.1,3067.4,15.63]
[1768918936613,0.14858044,3068.8,3067.4,1.93]
[1768918937911,0.14858044,3068.7,3067.4,1.93]
[1768918939909,0.14858044,3069.2,3067.4,1.93]
[1768918940315,0.14858044,3069.2,3067.5,4.39649382]
[1768918940622,0.14858044,3069.7,3067.6,0.16311]
[1768918940815,0.14858044,3069.7,3067.6,4.35927628]
[1768918941719,0.14858044,3069.7,3068.0,0.16309]
[1768918942024,0.14858044,3069.6,3068.1,1.958]
[1768918943429,0.15255884,3070.0,3068.1,1.958]
[1768918944629,0.15255884,3070.0,3068.1,6.05285408]
[1768918945528,0.15255884,3070.0,3068.2,17.95284191]
[1768918945730,0.15255884,3070.0,3068.3,4.09485408]
[1768918946629,0.15255884,3070.0,3068.2,17.95793408]
[1768918946928,0.15255884,3070.0,3068.3,4.09485408]
[1768918947329,0.0039784,3070.0,3068.7,0.27042542]
[1768918947530,0.0039784,3070.0,3068.8,1.96]
[1768918947831,0.14858044,3070.5,3068.8,6.05485408]
[1768918948720,0.152393,3070.5,3068.8,6.05485408]
[1768918949419,0.152393,3070.5,3068.8,1.96]
[1768918949619,0.14858044,3070.3,3068.8,1.96]
[1768918949918,0.14858044,3070.2,3068.8,1.96]
[1768918950321,0.14858044,3069.9,3068.4,6.05485408]
[1768918950627,0.14858044,3070.4,3068.4,1.96]
[1768918951128,0.14858044,3069.9,3068.4,1.96]
[1768918951329,0.14858044,3069.8,3068.4,1.96]
[1768918953628,0.14858044,3069.5,3068.4,1.96]
[1768918953832,0.14858044,3069.3,3067.6,6.05485408]
[1768918954636,0.14858044,3069.3,3067.6,1.96]
[1768918955128,0.14858044,3069.9,3067.6,6.1620541]
[1768918955536,0.31157044,3069.9,3067.6,6.1620541]
[1768918955834,0.14858044,3069.8,3067.6,6.1620541]
[1768918956025,0.14858044,3069.7,3067.6,6.1620541]
[1768918959231,0.14858044,3069.7,3067.8,4.09485408]
[1768918959428,0.14858044,3069.7,3068.0,0.16309]
[1768918959629,0.31156044,3070.2,3068.2,0.27067683]
[1768918959829,0.14858044,3070.2,3068.3,0.16307]
[1768918960035,0.14858044,3070.2,3068.4,1.96]
[1768918960433,0.14858044,3070.2,3068.4,6.05485408]
[1768918961438,0.14858044,3070.2,3068.4,6.21792408]
[1768918961929,0.14858044,3070.2,3068.4,6.32462392]
[1768918962134,0.14858044,3070.2,3068.5,13.7]
[1768918962334,0.14858044,3070.2,3068.5,17.95929305]
[1768918962538,0.14858044,3070.2,3068.5,18.12235305]
[1768918963036,0.14858044,3070.2,3068.5,13.86306]
[1768918963336,0.31644096,3070.1,3068.4,6.05485408]
[1768918963637,0.15346096,3070.0,3068.4,1.96]
[1768918966340,0.16286,3072.3,3070.0,0.16277307]
[1768918966530,0.16286,3072.3,3070.1,0.16277307]
[1768918966840,0.16286,3072.3,3070.2,0.16277307]
[1768918967231,1.599,3072.2,3070.2,0.16651106]
[1768918968338,0.16240543,3072.1,3070.2,0.16651106]
[1768918970035,1.665,3072.0,3070.2,0.16651106]
[1768918970336,0.16611913,3072.3,3070.3,0.16277307]
[1768918970540,0.16611913,3072.3,3070.3,0.32573307]
[1768918970840,0.16240543,3072.2,3070.2,0.00373799]
[1768918971042,0.16240543,3072.1,3070.2,0.00373799]
[1768918971231,0.32527543,3072.1,3070.2,0.00373799]
[1768918971428,0.16240543,3071.9,3070.2,0.00373799]
[1768918972237,0.16240543,3071.7,3070.2,0.00373799]
[1768918972638,0.16240543,3072.2,3070.2,0.16670799]
[1768918972935,1.82140543,3072.1,3070.2,0.16670799]
[1768918973335,0.16240543,3072.0,3070.2,0.16670799]
[1768918974139,3.26,3071.9,3070.2,0.16670799]
[1768918974342,3.42240543,3071.9,3070.2,0.16670799]
[1768918975839,5.23540543,3071.9,3070.2,0.00373799]
[1768918976041,0.16240543,3071.8,3070.2,0.00373799]
[1768918976232,1.97540543,3071.8,3070.2,0.00373799]
[1768918976436,1.813,3071.7,3070.2,0.00373799]
[1768918977238,0.16240543,3071.8,3070.2,0.00373799]
[1768918977439,1.813,3071.7,3070.2,0.00373799]
[1768918977635,0.32530543,3071.6,3070.2,0.00373799]
[1768918977941,0.16240543,3071.5,3070.2,0.00373799]
[1768918981243,1.97540543,3071.4,3070.2,0.00373799]
[1768918981442,0.16240543,3071.3,3070.2,0.00373799]
[1768918982142,1.813,3071.2,3070.2,0.00373799]
[1768918983445,0.16240543,3071.3,3070.2,0.00373799]
[1768918983747,1.812,3071.2,3070.2,0.00373799]
[1768918984049,1.97440543,3071.2,3070.2,0.00373799]
[1768918984550,0.16240543,3071.1,3069.2,0.16277307]
[1768918984842,0.16240543,3070.7,3068.7,4.25762715]
[1768918985144,0.16240543,3070.5,3068.7,0.16305]
[1768918985548,0.16240543,3070.5,3068.7,0.16682581]
[1768918986253,0.16240543,3070.1,3068.7,0.00377581]
[1768918986454,0.1664791,3070.1,3068.7,0.00377581]
[1768918986849,0.16240543,3069.9,3068.7,0.00377581]
[1768918987050,0.16240543,3069.7,3067.7,0.32587307]
[1768918987344,0.16240543,3069.7,3067.9,0.32587307]
[1768918987552,0.16240543,3069.5,3067.6,2.29483498]
[1768918987744,3.42140543,3069.4,3067.6,2.29483498]
[1768918987946,0.16240543,3069.3,3067.4,0.16277307]
[1768918988258,0.16240543,3069.3,3067.4,0.16692859]
[1768918989145,1.97540543,3069.2,3067.4,0.16692859]
[1768918989363,0.32543543,3069.1,3067.4,0.00415552]
[1768918989545,2.13844543,3069.0,3067.4,0.00415552]
[1768918989744,0.16240543,3068.9,3067.4,0.00415552]
[1768918990349,0.32544543,3068.9,3067.4,0.00415552]
[1768918990555,0.16240543,3068.8,3067.4,0.00415552]
[1768918991146,0.16240543,3068.6,3067.4,0.00415552]
[1768918991646,0.16240543,3068.4,3067.4,0.00415552]
[1768918991950,1.507,3068.3,3067.4,0.00415552]
[1768918992152,3.26,3068.2,3067.4,0.00415552]
[1768918993444,1.813,3068.1,3067.4,0.00415552]
[1768918993954,3.26,3068.2,3067.4,0.00415552]
[1768918996948,3.43379809,3068.2,3067.4,0.00415552]
[1768918997151,3.43379809,3068.2,3066.6,0.16277307]
[1768918998157,3.43379809,3068.2,3066.6,0.16687754]
[1768918998357,5.24679809,3068.2,3066.6,0.16687754]
[1768918998958,3.43379809,3068.2,3066.6,0.16687754]
[1768918999859,3.26,3068.2,3066.8,0.17681854]
[1768919001156,3.43379809,3068.2,3066.6,0.00410447]
[1768919002359,0.17379809,3068.1,3066.6,0.00410447]
[1768919002663,0.17379809,3067.7,3066.6,0.00410447]
[1768919002849,0.17379809,3067.5,3065.8,0.17681854]
[1768919003051,0.17379809,3067.2,3065.4,0.16323]
[1768919003464,0.17379809,3067.2,3065.6,0.16321]
[1768919003862,0.17379809,3066.8,3065.6,0.00315646]
[1768919004159,0.17379809,3066.6,3065.6,0.00315646]
[1768919004553,1.98779809,3066.5,3065.6,0.00315646]
[1768919005056,0.17379809,3066.5,3065.6,0.00315646]
[1768919005362,3.262,3066.7,3065.6,0.00315646]